[Event "*** Titled Tuesday Blitz"]
[Site "Chess.com"]
[Date "2020.11.24"]
[Round "8"]
[White "VinzentSpitzl"]
[Black "Das_Virus_2020"]
[Result "1-0"]
[WhiteElo "2380"]
[BlackElo "2488"]
[TimeControl "180+1"]
[EndTime "11:46:40 PST"]
[Termination "VinzentSpitzl won on time"]

1. e4 {[%clk 0:03:00.9]} 1... e6 {[%clk 0:02:59.9]} 2. d4 {[%clk 0:03:00.4]}
2... d5 {[%clk 0:03:00.4]} 3. Nd2 {[%clk 0:02:56.7]} 3... Nf6 {[%clk 0:03:00.1]}
4. e5 {[%clk 0:02:56.1]} 4... Nfd7 {[%clk 0:03:00.5]} 5. Bd3 {[%clk 0:02:55.2]}
5... c5 {[%clk 0:03:00.5]} 6. c3 {[%clk 0:02:55.6]} 6... Nc6 {[%clk 0:03:00.8]}
7. Ne2 {[%clk 0:02:55.6]} 7... cxd4 {[%clk 0:03:01.3]} 8. cxd4 {[%clk
0:02:55.4]} 8... f6 {[%clk 0:03:01.9]} 9. exf6 {[%clk 0:02:54.8]} 9... Nxf6
{[%clk 0:03:02.8]} 10. Nf3 {[%clk 0:02:51.4]} 10... Bd6 {[%clk 0:03:02.9]} 11.
Bf4 {[%clk 0:02:49.2]} 11... Bxf4 {[%clk 0:02:54.8]} 12. Nxf4 {[%clk 0:02:49.2]}
12... O-O {[%clk 0:02:51.2]} 13. O-O {[%clk 0:02:42.2]} 13... Ne4 {[%clk
0:02:50.2]} 14. Qc1 {[%clk 0:02:41.7]} 14... Qf6 {[%clk 0:02:46.8]} 15. Ne2
{[%clk 0:02:33.3]} 15... Bd7 {[%clk 0:02:42.1]} 16. Qe3 {[%clk 0:02:29]} 16...
Nd6 {[%clk 0:02:38.7]} 17. Ne5 {[%clk 0:02:18.9]} 17... Rad8 {[%clk 0:02:24.2]}
18. Rae1 {[%clk 0:02:08.7]} 18... Nb4 {[%clk 0:02:14.6]} 19. Bb1 {[%clk
0:02:00.8]} 19... Bb5 {[%clk 0:02:07.1]} 20. f4 {[%clk 0:01:35.3]} 20... Nc6
{[%clk 0:01:32.2]} 21. Rf3 {[%clk 0:01:20.1]} 21... Ne4 {[%clk 0:01:25.5]} 22.
Rh3 {[%clk 0:00:52.8]} 22... Nxe5 {[%clk 0:01:10.8]} 23. dxe5 {[%clk 0:00:43.6]}
23... Qf7 {[%clk 0:00:38.2]} 24. Nd4 {[%clk 0:00:25.9]} 24... Ba6 {[%clk
0:00:29.3]} 25. Bxe4 {[%clk 0:00:24.5]} 25... dxe4 {[%clk 0:00:30.2]} 26. Qxe4
{[%clk 0:00:25]} 26... g6 {[%clk 0:00:30.2]} 27. Rf3 {[%clk 0:00:21.1]} 27...
Qd7 {[%clk 0:00:29.1]} 28. Nb3 {[%clk 0:00:18.8]} 28... Qb5 {[%clk 0:00:26]} 29.
Rc3 {[%clk 0:00:11.9]} 29... Rd5 {[%clk 0:00:17.2]} 30. h4 {[%clk 0:00:11.6]}
30... Qe8 {[%clk 0:00:08]} 31. h5 {[%clk 0:00:11.1]} 31... Qf7 {[%clk
0:00:07.8]} 32. hxg6 {[%clk 0:00:10.1]} 32... hxg6 {[%clk 0:00:08.7]} 33. Rg3
{[%clk 0:00:10.4]} 33... Kg7 {[%clk 0:00:08.9]} 34. Nd4 {[%clk 0:00:08.5]} 34...
Re8 {[%clk 0:00:07.7]} 35. Nf3 {[%clk 0:00:08.3]} 35... b6 {[%clk 0:00:06.3]}
36. Ng5 {[%clk 0:00:08.5]} 36... Qe7 {[%clk 0:00:04.7]} 37. Rh3 {[%clk
0:00:08.4]} 37... Qc5+ {[%clk 0:00:04.2]} 38. Kh2 {[%clk 0:00:07.8]} 38... Bd3
{[%clk 0:00:03.7]} 39. Rh7+ {[%clk 0:00:07.4]} 39... Kg8 {[%clk 0:00:03.9]} 40.
Qf3 {[%clk 0:00:07.4]} 40... Re7 {[%clk 0:00:02.5]} 41. Rxe7 {[%clk 0:00:05.1]}
41... Qxe7 {[%clk 0:00:01.7]} 42. Qg3 {[%clk 0:00:04.9]} 42... Bf5 {[%clk
0:00:01.4]} 43. Rc1 {[%clk 0:00:04.8]} 43... Rc5 {[%clk 0:00:01.1]} 44. Rxc5
{[%clk 0:00:04.6]} 44... Qxc5 {[%clk 0:00:01.6]} 45. Qh4 {[%clk 0:00:05.2]}
45... Qe7 {[%clk 0:00:01.5]} 46. Nf3 {[%clk 0:00:05.4]} 1-0

[Event "*** Titled Tuesday Blitz"]
[Site "Chess.com"]
[Date "2020.11.24"]
[Round "8"]
[White "sopo-tereladze"]
[Black "RaneshRatnesan"]
[Result "1-0"]
[WhiteElo "2299"]
[BlackElo "2129"]
[TimeControl "180+1"]
[EndTime "11:46:44 PST"]
[Termination "sopo-tereladze won by checkmate"]

1. e4 {[%clk 0:03:00.9]} 1... c5 {[%clk 0:03:00]} 2. Nf3 {[%clk 0:03:00.5]} 2...
d6 {[%clk 0:03:00.2]} 3. d4 {[%clk 0:03:00.5]} 3... cxd4 {[%clk 0:03:01.1]} 4.
Qxd4 {[%clk 0:03:00.5]} 4... Nc6 {[%clk 0:03:00.6]} 5. Bb5 {[%clk 0:03:00.9]}
5... Bd7 {[%clk 0:03:01.2]} 6. Bxc6 {[%clk 0:03:00.9]} 6... Bxc6 {[%clk
0:03:02.1]} 7. Nc3 {[%clk 0:03:01]} 7... h6 {[%clk 0:03:01.5]} 8. Be3 {[%clk
0:02:59.3]} 8... e5 {[%clk 0:03:01.2]} 9. Qd3 {[%clk 0:02:58.7]} 9... Nf6 {[%clk
0:03:01.8]} 10. O-O-O {[%clk 0:02:58.4]} 10... Be7 {[%clk 0:03:01.3]} 11. Kb1
{[%clk 0:02:58.7]} 11... Qa5 {[%clk 0:03:00.6]} 12. h3 {[%clk 0:02:57.2]} 12...
b5 {[%clk 0:02:59.2]} 13. g4 {[%clk 0:02:53.8]} 13... b4 {[%clk 0:02:59.2]} 14.
Nd5 {[%clk 0:02:53.4]} 14... Nxd5 {[%clk 0:02:59.5]} 15. exd5 {[%clk 0:02:53.2]}
15... Bb5 {[%clk 0:03:00.2]} 16. Qd2 {[%clk 0:02:49.5]} 16... Rb8 {[%clk
0:02:56.9]} 17. g5 {[%clk 0:02:34.5]} 17... h5 {[%clk 0:02:54.8]} 18. Nh4 {[%clk
0:02:17.4]} 18... g6 {[%clk 0:02:53.6]} 19. f4 {[%clk 0:02:17.3]} 19... O-O
{[%clk 0:02:50]} 20. f5 {[%clk 0:02:14.6]} 20... Kh7 {[%clk 0:02:48]} 21. Qg2
{[%clk 0:01:42.5]} 21... Rbc8 {[%clk 0:02:36.1]} 22. fxg6+ {[%clk 0:01:39.6]}
22... fxg6 {[%clk 0:02:37]} 23. Qe4 {[%clk 0:01:39.7]} 23... Rg8 {[%clk
0:02:33.9]} 24. b3 {[%clk 0:01:31.9]} 24... Rc3 {[%clk 0:02:28.8]} 25. Bd2
{[%clk 0:01:27.1]} 25... Qa3 {[%clk 0:02:21.2]} 26. Bc1 {[%clk 0:01:22.8]} 26...
Qa6 {[%clk 0:02:20.4]} 27. Bb2 {[%clk 0:01:21]} 27... Qa5 {[%clk 0:02:15.7]} 28.
Rd2 {[%clk 0:01:19.2]} 28... Bxg5 {[%clk 0:02:08.9]} 29. Rf2 {[%clk 0:00:46.9]}
29... Bf4 {[%clk 0:02:07.2]} 30. Rg1 {[%clk 0:00:39.8]} 30... Be8 {[%clk
0:02:02.7]} 31. Nf3 {[%clk 0:00:26.6]} 31... Rc7 {[%clk 0:01:53.5]} 32. Ng5+
{[%clk 0:00:25.8]} 32... Bxg5 {[%clk 0:01:53.8]} 33. Rxg5 {[%clk 0:00:26.3]}
33... Qb6 {[%clk 0:01:52.3]} 34. Rxh5+ {[%clk 0:00:26]} 34... Kg7 {[%clk
0:01:51.9]} 35. Rg2 {[%clk 0:00:24.9]} 35... Rf8 {[%clk 0:01:44.5]} 36. Rhg5
{[%clk 0:00:19.4]} 36... Rf6 {[%clk 0:01:44.5]} 37. Bc1 {[%clk 0:00:19.9]} 37...
a5 {[%clk 0:01:39.5]} 38. R5g4 {[%clk 0:00:17.7]} 38... Rc3 {[%clk 0:01:35.2]}
39. h4 {[%clk 0:00:16.9]} 39... Rh3 {[%clk 0:01:27.9]} 40. Kb2 {[%clk
0:00:14.5]} 40... Qb5 {[%clk 0:01:26.6]} 41. Bg5 {[%clk 0:00:13.4]} 41... Rf1
{[%clk 0:01:23.1]} 42. Bd2 {[%clk 0:00:11.8]} 42... Rf6 {[%clk 0:01:18.2]} 43.
Bg5 {[%clk 0:00:10.6]} 43... Rf1 {[%clk 0:01:00.4]} 44. Bd2 {[%clk 0:00:10]}
44... Rhh1 {[%clk 0:00:38.5]} 45. Rxg6+ {[%clk 0:00:08.3]} 45... Bxg6 {[%clk
0:00:39.4]} 46. Qxg6+ {[%clk 0:00:08.6]} 46... Kf8 {[%clk 0:00:39.8]} 47. Qg7+
{[%clk 0:00:07.5]} 47... Ke8 {[%clk 0:00:39.4]} 48. Qg8+ {[%clk 0:00:05.7]}
48... Rf8 {[%clk 0:00:33.4]} 49. Qe6+ {[%clk 0:00:02.4]} 49... Kd8 {[%clk
0:00:31.2]} 50. Bg5+ {[%clk 0:00:03.3]} 50... Kc7 {[%clk 0:00:28.7]} 51. Qe7+
{[%clk 0:00:04.2]} 51... Kb6 {[%clk 0:00:29.1]} 52. Qxf8 {[%clk 0:00:04.3]}
52... Qc5 {[%clk 0:00:28.8]} 53. Qd8+ {[%clk 0:00:04.3]} 53... Ka6 {[%clk
0:00:27.4]} 54. Qa8+ {[%clk 0:00:03.2]} 54... Kb6 {[%clk 0:00:27.4]} 55. Bd8+
{[%clk 0:00:02.6]} 55... Kb5 {[%clk 0:00:24.9]} 56. Qb7+ {[%clk 0:00:02.9]}
56... Qb6 {[%clk 0:00:24]} 57. Qxb6# {[%clk 0:00:03.3]} 1-0

[Event "*** Titled Tuesday Blitz"]
[Site "Chess.com"]
[Date "2020.11.24"]
[Round "8"]
[White "annamaja"]
[Black "ZenBull"]
[Result "0-1"]
[WhiteElo "2282"]
[BlackElo "2147"]
[TimeControl "180+1"]
[EndTime "11:46:44 PST"]
[Termination "ZenBull won by resignation"]

1. e4 {[%clk 0:03:00.9]} 1... c5 {[%clk 0:02:59.4]} 2. Nf3 {[%clk 0:03:00.7]}
2... e6 {[%clk 0:02:58.7]} 3. d4 {[%clk 0:03:00.2]} 3... cxd4 {[%clk 0:02:59.4]}
4. Nxd4 {[%clk 0:03:00.2]} 4... Nc6 {[%clk 0:03:00.3]} 5. Nb5 {[%clk 0:02:58]}
5... d6 {[%clk 0:02:59.3]} 6. c4 {[%clk 0:02:58]} 6... Nf6 {[%clk 0:02:57.4]} 7.
N1c3 {[%clk 0:02:55.7]} 7... a6 {[%clk 0:02:56.6]} 8. Nd4 {[%clk 0:02:54.3]}
8... Be7 {[%clk 0:02:56.2]} 9. Be2 {[%clk 0:02:43.9]} 9... O-O {[%clk
0:02:55.4]} 10. Be3 {[%clk 0:02:42.9]} 10... Bd7 {[%clk 0:02:43.9]} 11. O-O
{[%clk 0:02:42]} 11... Rc8 {[%clk 0:02:42.6]} 12. Rc1 {[%clk 0:02:36.4]} 12...
Nxd4 {[%clk 0:02:27.1]} 13. Bxd4 {[%clk 0:02:31.7]} 13... Bc6 {[%clk 0:02:28]}
14. f3 {[%clk 0:02:25]} 14... Qc7 {[%clk 0:02:11.9]} 15. Be3 {[%clk 0:02:21.1]}
15... Qb8 {[%clk 0:02:11.5]} 16. g4 {[%clk 0:02:18.7]} 16... Nd7 {[%clk
0:02:05.3]} 17. g5 {[%clk 0:02:14.4]} 17... b5 {[%clk 0:02:00.7]} 18. cxb5
{[%clk 0:02:08.5]} 18... axb5 {[%clk 0:02:01.6]} 19. a3 {[%clk 0:02:07.7]} 19...
Ne5 {[%clk 0:01:53.7]} 20. f4 {[%clk 0:02:03.9]} 20... Nc4 {[%clk 0:01:53.7]}
21. Bxc4 {[%clk 0:01:57.3]} 21... bxc4 {[%clk 0:01:54.6]} 22. f5 {[%clk
0:01:47.2]} 22... Bd8 {[%clk 0:01:31.7]} 23. f6 {[%clk 0:01:36.1]} 23... Qb7
{[%clk 0:01:09.5]} 24. fxg7 {[%clk 0:01:19.6]} 24... Kxg7 {[%clk 0:01:05.7]} 25.
Qxd6 {[%clk 0:01:14.6]} 25... Bc7 {[%clk 0:00:57.7]} 26. Bd4+ {[%clk 0:01:05.4]}
26... Kg8 {[%clk 0:00:51.5]} 27. Qe7 {[%clk 0:01:05.3]} 27... Bxh2+ {[%clk
0:00:47.6]} 28. Kxh2 {[%clk 0:00:58.7]} 28... Qxe7 {[%clk 0:00:47.6]} 29. Bf6
{[%clk 0:00:40.8]} 29... Qd6+ {[%clk 0:00:45.2]} 30. Kh3 {[%clk 0:00:36.8]}
30... Qd3+ {[%clk 0:00:43.7]} 31. Kg4 {[%clk 0:00:34]} 31... Bxe4 {[%clk
0:00:43]} 32. Rcd1 {[%clk 0:00:23.6]} 32... Bf5+ {[%clk 0:00:42.8]} 33. Kf4
{[%clk 0:00:20.5]} 33... Qh3 {[%clk 0:00:38.3]} 34. Ke5 {[%clk 0:00:18.6]} 34...
Rc5+ {[%clk 0:00:36.4]} 35. Kd6 {[%clk 0:00:18.5]} 35... Rfc8 {[%clk 0:00:34.6]}
36. Be5 {[%clk 0:00:10.9]} 36... R8c6+ {[%clk 0:00:27.6]} 37. Kd7 {[%clk
0:00:11.2]} 37... Rxe5 {[%clk 0:00:20.9]} 38. Kxc6 {[%clk 0:00:11.4]} 38... Qg2+
{[%clk 0:00:20.1]} 39. Kd6 {[%clk 0:00:10]} 39... Ra5 {[%clk 0:00:16.7]} 40. Ke7
{[%clk 0:00:09.6]} 40... Qb7+ {[%clk 0:00:14.9]} 41. Rd7 {[%clk 0:00:08.7]}
41... Qc6 {[%clk 0:00:14.8]} 42. Rfd1 {[%clk 0:00:06.5]} 42... Kg7 {[%clk
0:00:15]} 43. R1d6 {[%clk 0:00:05.6]} 43... Qc5 {[%clk 0:00:15.1]} 44. Ke8
{[%clk 0:00:04.9]} 44... Ra8+ {[%clk 0:00:14.9]} 45. Ke7 {[%clk 0:00:04.7]}
45... Ra7 {[%clk 0:00:15.3]} 46. b4 {[%clk 0:00:03.3]} 46... Rxd7+ {[%clk
0:00:14.4]} 47. Kxd7 {[%clk 0:00:03]} 47... Qa7+ {[%clk 0:00:13.9]} 48. Kc6
{[%clk 0:00:01.7]} 48... Qxa3 {[%clk 0:00:13.2]} 49. b5 {[%clk 0:00:01.5]} 49...
Qxc3 {[%clk 0:00:12.7]} 50. b6 {[%clk 0:00:02]} 50... Be4+ {[%clk 0:00:13]} 51.
Kc5 {[%clk 0:00:02.5]} 51... Qa3+ {[%clk 0:00:12.9]} 52. Kb5 {[%clk 0:00:01.5]}
52... Qxd6 {[%clk 0:00:12.9]} 53. Kxc4 {[%clk 0:00:02]} 53... Qc6+ {[%clk
0:00:13.2]} 0-1

[Event "*** Titled Tuesday Blitz"]
[Site "Chess.com"]
[Date "2020.11.24"]
[Round "8"]
[White "Gevo1990"]
[Black "LPSupi"]
[Result "1-0"]
[WhiteElo "2626"]
[BlackElo "2899"]
[TimeControl "180+1"]
[EndTime "11:46:45 PST"]
[Termination "Gevo1990 won on time"]

1. e4 {[%clk 0:03:00.9]} 1... c5 {[%clk 0:02:54.2]} 2. Nc3 {[%clk 0:03:00.3]}
2... d6 {[%clk 0:02:54.2]} 3. f4 {[%clk 0:03:00]} 3... g6 {[%clk 0:02:53.2]} 4.
Nf3 {[%clk 0:03:00.4]} 4... Nc6 {[%clk 0:02:53.5]} 5. Bc4 {[%clk 0:03:00.9]}
5... Bg7 {[%clk 0:02:52.6]} 6. O-O {[%clk 0:03:01]} 6... Nf6 {[%clk 0:02:50.6]}
7. d3 {[%clk 0:02:59.3]} 7... O-O {[%clk 0:02:43.7]} 8. Qe1 {[%clk 0:02:59.5]}
8... Nd4 {[%clk 0:02:43.9]} 9. Nxd4 {[%clk 0:02:59]} 9... cxd4 {[%clk
0:02:44.1]} 10. Ne2 {[%clk 0:02:59.9]} 10... d5 {[%clk 0:02:41.9]} 11. exd5
{[%clk 0:02:53.8]} 11... Nxd5 {[%clk 0:02:39.9]} 12. Qf2 {[%clk 0:02:54.4]}
12... Nb4 {[%clk 0:02:11]} 13. Bb3 {[%clk 0:02:49.1]} 13... e6 {[%clk
0:01:53.7]} 14. Bd2 {[%clk 0:02:44.3]} 14... Nc6 {[%clk 0:01:50.2]} 15. Ng3
{[%clk 0:02:43.6]} 15... b6 {[%clk 0:01:46.5]} 16. Ne4 {[%clk 0:02:42.2]} 16...
Bb7 {[%clk 0:01:35.4]} 17. g4 {[%clk 0:02:36.6]} 17... Ne7 {[%clk 0:01:00.5]}
18. Bb4 {[%clk 0:02:35.7]} 18... a5 {[%clk 0:00:59.9]} 19. Bxe7 {[%clk
0:02:31.4]} 19... Qxe7 {[%clk 0:00:59.5]} 20. a4 {[%clk 0:02:30]} 20... Kh8
{[%clk 0:00:56.3]} 21. Rae1 {[%clk 0:02:29.5]} 21... Rad8 {[%clk 0:00:54.6]} 22.
f5 {[%clk 0:02:29.6]} 22... exf5 {[%clk 0:00:42]} 23. gxf5 {[%clk 0:02:29.1]}
23... Bh6 {[%clk 0:00:42.3]} 24. f6 {[%clk 0:02:22.5]} 24... Qe5 {[%clk
0:00:33]} 25. Qh4 {[%clk 0:01:15.1]} 25... Qh5 {[%clk 0:00:09.8]} 26. Qxh5
{[%clk 0:01:09.8]} 26... gxh5 {[%clk 0:00:10.7]} 27. Rf5 {[%clk 0:01:02.5]}
27... Be3+ {[%clk 0:00:10.1]} 28. Kf1 {[%clk 0:01:02.4]} 28... Bc8 {[%clk
0:00:05.2]} 29. Rxh5 {[%clk 0:00:57.6]} 29... Rg8 {[%clk 0:00:05.7]} 30. h3
{[%clk 0:00:52.2]} 30... Rg1+ {[%clk 0:00:04.4]} 31. Ke2 {[%clk 0:00:52.2]}
31... Rg2+ {[%clk 0:00:04.6]} 32. Kf3 {[%clk 0:00:49]} 32... Rdg8 {[%clk
0:00:04.1]} 33. Rxe3 {[%clk 0:00:46.9]} 33... dxe3 {[%clk 0:00:03.5]} 34. Kxe3
{[%clk 0:00:47.8]} 34... Bb7 {[%clk 0:00:02.6]} 35. Bxf7 {[%clk 0:00:45.7]}
35... Rf8 {[%clk 0:00:03]} 36. Bd5 {[%clk 0:00:43.1]} 36... Bxd5 {[%clk
0:00:02.2]} 37. Rxd5 {[%clk 0:00:43.2]} 37... Rxc2 {[%clk 0:00:03]} 38. Rb5
{[%clk 0:00:43.2]} 38... Rc6 {[%clk 0:00:02.7]} 39. h4 {[%clk 0:00:41.1]} 39...
Re6 {[%clk 0:00:02]} 40. Kf4 {[%clk 0:00:40.9]} 40... Rd8 {[%clk 0:00:02.3]} 41.
Kf5 {[%clk 0:00:40]} 41... Rc6 {[%clk 0:00:02.5]} 42. Re5 {[%clk 0:00:36.7]}
42... Kg8 {[%clk 0:00:02.7]} 43. Ng5 {[%clk 0:00:36.1]} 43... Rf8 {[%clk
0:00:01.5]} 44. Ne4 {[%clk 0:00:33.7]} 44... Rf7 {[%clk 0:00:01.6]} 45. Re8+
{[%clk 0:00:32.5]} 45... Rf8 {[%clk 0:00:02.3]} 46. Re7 {[%clk 0:00:33.1]} 46...
Rf7 {[%clk 0:00:02.9]} 47. d4 {[%clk 0:00:29.3]} 47... Rxe7 {[%clk 0:00:02.7]}
48. fxe7 {[%clk 0:00:29.6]} 48... Kf7 {[%clk 0:00:03.3]} 49. d5 {[%clk
0:00:30.3]} 49... Rh6 {[%clk 0:00:03.2]} 50. d6 {[%clk 0:00:30.3]} 50... Rh5+
{[%clk 0:00:02.6]} 51. Ng5+ {[%clk 0:00:30]} 51... Ke8 {[%clk 0:00:02.2]} 52.
Ke6 {[%clk 0:00:23.3]} 52... Rh6+ {[%clk 0:00:02.4]} 53. Kd5 {[%clk 0:00:22.9]}
53... Rf6 {[%clk 0:00:02.3]} 54. Ne4 {[%clk 0:00:22.5]} 54... Rf5+ {[%clk
0:00:01.9]} 55. Ke6 {[%clk 0:00:22.2]} 1-0

[Event "*** Titled Tuesday Blitz"]
[Site "Chess.com"]
[Date "2020.11.24"]
[Round "8"]
[White "tdf98pantani"]
[Black "Lion-Al-Messi"]
[Result "0-1"]
[WhiteElo "2707"]
[BlackElo "2572"]
[TimeControl "180+1"]
[EndTime "11:46:46 PST"]
[Termination "Lion-Al-Messi won by resignation"]

1. e4 {[%clk 0:02:53.5]} 1... b6 {[%clk 0:03:00.9]} 2. d4 {[%clk 0:02:52.9]}
2... Bb7 {[%clk 0:03:01.2]} 3. Bd3 {[%clk 0:02:53.4]} 3... e6 {[%clk 0:03:00.7]}
4. Nd2 {[%clk 0:02:53.3]} 4... c5 {[%clk 0:03:00.3]} 5. c3 {[%clk 0:02:53.2]}
5... Nf6 {[%clk 0:03:00.3]} 6. Ne2 {[%clk 0:02:53.2]} 6... cxd4 {[%clk
0:02:56.7]} 7. cxd4 {[%clk 0:02:52.9]} 7... Be7 {[%clk 0:02:55.8]} 8. O-O {[%clk
0:02:52.5]} 8... Ba6 {[%clk 0:02:53.6]} 9. Bxa6 {[%clk 0:02:45.7]} 9... Nxa6
{[%clk 0:02:54.5]} 10. e5 {[%clk 0:02:46]} 10... Nd5 {[%clk 0:02:54.1]} 11. Ne4
{[%clk 0:02:46.5]} 11... O-O {[%clk 0:02:49.5]} 12. Nf4 {[%clk 0:02:43.1]} 12...
f5 {[%clk 0:02:48.6]} 13. Nxd5 {[%clk 0:02:39.1]} 13... exd5 {[%clk 0:02:36.8]}
14. Nc3 {[%clk 0:02:37.8]} 14... f4 {[%clk 0:02:18.6]} 15. Qf3 {[%clk
0:02:23.9]} 15... d6 {[%clk 0:02:11.8]} 16. e6 {[%clk 0:02:08]} 16... Nc7 {[%clk
0:02:08.5]} 17. Nxd5 {[%clk 0:02:07.6]} 17... Nxd5 {[%clk 0:02:08]} 18. Qxd5
{[%clk 0:02:07.4]} 18... f3 {[%clk 0:02:08.5]} 19. g3 {[%clk 0:02:05.9]} 19...
Qe8 {[%clk 0:02:05.6]} 20. Re1 {[%clk 0:02:01.2]} 20... Qg6 {[%clk 0:02:01.3]}
21. h3 {[%clk 0:01:51.7]} 21... Rac8 {[%clk 0:01:59.5]} 22. Be3 {[%clk
0:01:42.3]} 22... Rc2 {[%clk 0:00:53.6]} 23. Rac1 {[%clk 0:01:38.2]} 23... Rxb2
{[%clk 0:00:50.9]} 24. Rc7 {[%clk 0:01:36.2]} 24... Qf6 {[%clk 0:00:45.6]} 25.
Qb7 {[%clk 0:01:28.9]} 25... Re8 {[%clk 0:00:34.9]} 26. Qc6 {[%clk 0:01:16]}
26... Rf8 {[%clk 0:00:08.2]} 27. Qd7 {[%clk 0:01:15.1]} 27... Bd8 {[%clk
0:00:07.8]} 28. e7 {[%clk 0:01:07.9]} 28... Bxe7 {[%clk 0:00:06.7]} 29. Qxe7
{[%clk 0:01:07.9]} 29... Qg6 {[%clk 0:00:07.1]} 30. Rxa7 {[%clk 0:00:55]} 30...
Rb1 {[%clk 0:00:06.4]} 31. Bd2 {[%clk 0:00:47.8]} 31... Rxe1+ {[%clk 0:00:06.2]}
32. Bxe1 {[%clk 0:00:45.7]} 32... Re8 {[%clk 0:00:06.2]} 33. Kh2 {[%clk
0:00:22.3]} 33... Rxe7 {[%clk 0:00:05.9]} 34. Rxe7 {[%clk 0:00:23.2]} 34... h6
{[%clk 0:00:06.4]} 35. Re3 {[%clk 0:00:22.5]} 35... Qf5 {[%clk 0:00:05.2]} 36.
Bc3 {[%clk 0:00:20.6]} 36... g5 {[%clk 0:00:05.3]} 37. d5 {[%clk 0:00:19.5]}
37... g4 {[%clk 0:00:05.3]} 38. hxg4 {[%clk 0:00:17.7]} 38... Qxg4 {[%clk
0:00:06.2]} 39. Re7 {[%clk 0:00:14.2]} 39... Kf8 {[%clk 0:00:06.6]} 40. Re3
{[%clk 0:00:13.7]} 40... Qh5+ {[%clk 0:00:06.6]} 41. Kg1 {[%clk 0:00:13.5]}
41... Kf7 {[%clk 0:00:06.9]} 42. Bd4 {[%clk 0:00:12.9]} 42... Qxd5 {[%clk
0:00:07]} 43. Bxb6 {[%clk 0:00:12.2]} 43... Qc6 {[%clk 0:00:07.2]} 44. Bd4
{[%clk 0:00:11.7]} 44... h5 {[%clk 0:00:07.1]} 45. Kh2 {[%clk 0:00:11.6]} 45...
Qd5 {[%clk 0:00:06]} 46. Bc3 {[%clk 0:00:11.2]} 46... Qd1 {[%clk 0:00:05.9]} 47.
a4 {[%clk 0:00:08.7]} 47... d5 {[%clk 0:00:06.2]} 48. Be5 {[%clk 0:00:07.8]}
48... d4 {[%clk 0:00:06.1]} 49. Ra3 {[%clk 0:00:07.9]} 49... d3 {[%clk
0:00:06.1]} 50. Ra1 {[%clk 0:00:05.9]} 50... Qe2 {[%clk 0:00:06.3]} 51. Bd4
{[%clk 0:00:05.6]} 51... d2 {[%clk 0:00:06.5]} 0-1

[Event "*** Titled Tuesday Blitz"]
[Site "Chess.com"]
[Date "2020.11.24"]
[Round "8"]
[White "Angel_Hranitel_37"]
[Black "Leonid_Starozhilov"]
[Result "0-1"]
[WhiteElo "2483"]
[BlackElo "2656"]
[TimeControl "180+1"]
[EndTime "11:46:46 PST"]
[Termination "Leonid_Starozhilov won by resignation"]

1. d4 {[%clk 0:03:00.9]} 1... Nf6 {[%clk 0:02:59.8]} 2. Nf3 {[%clk 0:03:01.4]}
2... g6 {[%clk 0:03:00.2]} 3. g3 {[%clk 0:03:01.9]} 3... Bg7 {[%clk 0:03:00.7]}
4. Bg2 {[%clk 0:03:02.8]} 4... O-O {[%clk 0:03:01.6]} 5. O-O {[%clk 0:03:03.7]}
5... d6 {[%clk 0:03:02.5]} 6. Nc3 {[%clk 0:03:03.6]} 6... Bg4 {[%clk 0:02:59.5]}
7. e4 {[%clk 0:03:00.1]} 7... Nc6 {[%clk 0:02:59.1]} 8. Re1 {[%clk 0:02:57.9]}
8... e5 {[%clk 0:02:58.6]} 9. dxe5 {[%clk 0:02:51.7]} 9... Nxe5 {[%clk
0:02:50.7]} 10. Bg5 {[%clk 0:02:48.2]} 10... h6 {[%clk 0:02:49.4]} 11. Be3
{[%clk 0:02:34.8]} 11... Re8 {[%clk 0:02:46.7]} 12. Bd4 {[%clk 0:02:14.5]} 12...
c6 {[%clk 0:02:35.6]} 13. Bxe5 {[%clk 0:02:09.8]} 13... dxe5 {[%clk 0:02:34.6]}
14. h3 {[%clk 0:02:09.7]} 14... Bxf3 {[%clk 0:02:23.7]} 15. Qxf3 {[%clk
0:02:07.6]} 15... Qb6 {[%clk 0:02:21]} 16. Na4 {[%clk 0:02:04]} 16... Qb4 {[%clk
0:02:17.7]} 17. Qb3 {[%clk 0:02:02.4]} 17... Qxb3 {[%clk 0:01:48.3]} 18. axb3
{[%clk 0:02:03.3]} 18... Bf8 {[%clk 0:01:48.4]} 19. f3 {[%clk 0:01:54.4]} 19...
Rad8 {[%clk 0:01:45.2]} 20. Red1 {[%clk 0:01:45.9]} 20... b5 {[%clk 0:01:38.7]}
21. Nc3 {[%clk 0:01:43.8]} 21... Bc5+ {[%clk 0:01:36.6]} 22. Kf1 {[%clk
0:01:43.1]} 22... Nh5 {[%clk 0:01:25.7]} 23. Ne2 {[%clk 0:01:43.1]} 23... Kf8
{[%clk 0:01:22.1]} 24. g4 {[%clk 0:01:36.7]} 24... Nf6 {[%clk 0:01:14.9]} 25. c3
{[%clk 0:01:36.7]} 25... Rxd1+ {[%clk 0:01:05.8]} 26. Rxd1 {[%clk 0:01:36.2]}
26... a5 {[%clk 0:01:06.5]} 27. Nc1 {[%clk 0:01:27.3]} 27... Ke7 {[%clk
0:01:01]} 28. Ke2 {[%clk 0:01:27.3]} 28... Nd7 {[%clk 0:00:59.3]} 29. Nd3 {[%clk
0:01:19.7]} 29... Bb6 {[%clk 0:00:59.6]} 30. b4 {[%clk 0:01:19.2]} 30... a4
{[%clk 0:00:58.2]} 31. h4 {[%clk 0:00:49.7]} 31... Bc7 {[%clk 0:00:43.5]} 32. g5
{[%clk 0:00:43.3]} 32... hxg5 {[%clk 0:00:43.4]} 33. hxg5 {[%clk 0:00:44.2]}
33... Rh8 {[%clk 0:00:44.1]} 34. Rh1 {[%clk 0:00:26.1]} 34... Rxh1 {[%clk
0:00:43.4]} 35. Bxh1 {[%clk 0:00:26.9]} 35... Nf8 {[%clk 0:00:43.9]} 36. Bg2
{[%clk 0:00:27.2]} 36... Ne6 {[%clk 0:00:44.1]} 37. Bh3 {[%clk 0:00:27.5]} 37...
Nxg5 {[%clk 0:00:44.7]} 38. Bc8 {[%clk 0:00:28.2]} 38... Bd6 {[%clk 0:00:40.3]}
39. Ke3 {[%clk 0:00:19.9]} 39... Ne6 {[%clk 0:00:32.4]} 40. Ba6 {[%clk 0:00:13]}
40... Kd7 {[%clk 0:00:26.5]} 41. c4 {[%clk 0:00:13.2]} 41... Nd4 {[%clk
0:00:22.7]} 42. cxb5 {[%clk 0:00:13.2]} 42... cxb5 {[%clk 0:00:23.1]} 43. f4
{[%clk 0:00:10.3]} 43... f6 {[%clk 0:00:23.1]} 44. fxe5 {[%clk 0:00:10.4]} 44...
fxe5 {[%clk 0:00:16.9]} 45. Bb7 {[%clk 0:00:08]} 45... Kc7 {[%clk 0:00:15.6]}
46. Bd5 {[%clk 0:00:04.7]} 46... Nc2+ {[%clk 0:00:14.1]} 47. Kf3 {[%clk
0:00:04.6]} 47... Nxb4 {[%clk 0:00:15]} 48. Bf7 {[%clk 0:00:04.8]} 48... Nxd3
{[%clk 0:00:15.1]} 49. Bxg6 {[%clk 0:00:04.8]} 49... Nxb2 {[%clk 0:00:15.6]} 50.
Bf7 {[%clk 0:00:05.2]} 50... b4 {[%clk 0:00:16.3]} 51. Ke3 {[%clk 0:00:05.9]}
51... Bc5+ {[%clk 0:00:15.2]} 52. Kd2 {[%clk 0:00:06.7]} 52... Bd4 {[%clk
0:00:15.3]} 53. Kc2 {[%clk 0:00:06.9]} 53... Kb6 {[%clk 0:00:15.9]} 54. Be6
{[%clk 0:00:06.5]} 54... Kc5 {[%clk 0:00:16.3]} 55. Bf7 {[%clk 0:00:07.4]} 55...
Nc4 {[%clk 0:00:16.1]} 56. Kd3 {[%clk 0:00:07.3]} 56... Nd6 {[%clk 0:00:15.7]}
57. Kc2 {[%clk 0:00:08.2]} 57... Nxf7 {[%clk 0:00:15.7]} 0-1